[Event "*** Titled Tuesday Blitz"]
[Site "Chess.com"]
[Date "2020.05.19"]
[Round "10"]
[White "karinachess1"]
[Black "DinaBelenkaya"]
[Result "1-0"]
[WhiteElo "2506"]
[BlackElo "2241"]
[TimeControl "180+1"]
[EndTime "13:56:44 PDT"]
[Termination "karinachess1 won by resignation"]

1. d4 {[%clk 0:03:00.9]} 1... Nf6 {[%clk 0:02:58.9]} 2. Nf3 {[%clk 0:03:00]}
2... d5 {[%clk 0:02:52.9]} 3. e3 {[%clk 0:02:50.4]} 3... e6 {[%clk 0:02:37.8]}
4. b3 {[%clk 0:02:47.9]} 4... c5 {[%clk 0:02:36.7]} 5. Bb2 {[%clk 0:02:47.9]}
5... Nc6 {[%clk 0:02:36.8]} 6. Nbd2 {[%clk 0:02:45.9]} 6... Bd6 {[%clk
0:02:33.5]} 7. a3 {[%clk 0:02:45.3]} 7... a6 {[%clk 0:02:20.4]} 8. Bd3 {[%clk
0:02:32]} 8... O-O {[%clk 0:02:20.1]} 9. O-O {[%clk 0:02:29.5]} 9... b5 {[%clk
0:02:20.1]} 10. dxc5 {[%clk 0:02:18]} 10... Bxc5 {[%clk 0:02:21]} 11. Qe2 {[%clk
0:02:15.7]} 11... Bb7 {[%clk 0:02:20.5]} 12. Rad1 {[%clk 0:02:07.4]} 12... Qc7
{[%clk 0:01:54.9]} 13. e4 {[%clk 0:02:00.4]} 13... d4 {[%clk 0:01:11.9]} 14. e5
{[%clk 0:01:41.6]} 14... Ng4 {[%clk 0:01:01.4]} 15. Qe4 {[%clk 0:01:29.4]} 15...
f5 {[%clk 0:00:58.8]} 16. exf6 {[%clk 0:01:27.1]} 16... Nxf6 {[%clk 0:00:58]}
17. Qxe6+ {[%clk 0:01:27.3]} 17... Kh8 {[%clk 0:00:48.9]} 18. Qh3 {[%clk
0:01:26.7]} 18... Ne5 {[%clk 0:00:25]} 19. Nxe5 {[%clk 0:01:07.5]} 19... Qxe5
{[%clk 0:00:25.9]} 20. Rde1 {[%clk 0:01:01.9]} 20... Qf4 {[%clk 0:00:22.7]} 21.
Bc1 {[%clk 0:01:01.9]} 21... Rae8 {[%clk 0:00:19.6]} 22. Ne4 {[%clk 0:00:57.7]}
22... Qc7 {[%clk 0:00:14]} 23. Nxf6 {[%clk 0:00:55.8]} 23... gxf6 {[%clk
0:00:14.7]} 24. Bf4 {[%clk 0:00:51.2]} 24... Qg7 {[%clk 0:00:12.6]} 25. Bh6
{[%clk 0:00:50.7]} 25... Qf7 {[%clk 0:00:09.8]} 26. Bxf8 {[%clk 0:00:50.2]}
26... Rxf8 {[%clk 0:00:09.8]} 27. Re2 {[%clk 0:00:42.2]} 27... Rg8 {[%clk
0:00:10]} 28. f3 {[%clk 0:00:42.6]} 28... Bc8 {[%clk 0:00:08.4]} 29. Qh4 {[%clk
0:00:39.9]} 29... f5 {[%clk 0:00:05.8]} 30. Rfe1 {[%clk 0:00:37]} 30... Qg6
{[%clk 0:00:05.5]} 31. Qf4 {[%clk 0:00:33.3]} 31... Bb7 {[%clk 0:00:03.5]} 32.
Qe5+ {[%clk 0:00:32.3]} 32... Rg7 {[%clk 0:00:02.2]} 33. Qxc5 {[%clk 0:00:29.6]}
33... Bxf3 {[%clk 0:00:02.5]} 34. Re8+ {[%clk 0:00:28.7]} 34... Rg8 {[%clk
0:00:02.3]} 35. Qe5+ {[%clk 0:00:28.2]} 35... Qg7 {[%clk 0:00:02.1]} 36. Rxg8+
{[%clk 0:00:26.7]} 36... Kxg8 {[%clk 0:00:01.2]} 1-0

[Event "*** Titled Tuesday Blitz"]
[Site "Chess.com"]
[Date "2020.05.19"]
[Round "10"]
[White "nabukatnezarr"]
[Black "SameerMujumdar"]
[Result "1-0"]
[WhiteElo "2535"]
[BlackElo "2301"]
[TimeControl "180+1"]
[EndTime "13:56:45 PDT"]
[Termination "nabukatnezarr won by resignation"]

1. d4 {[%clk 0:03:00.9]} 1... Nf6 {[%clk 0:02:21.2]} 2. Bg5 {[%clk 0:02:24.2]}
2... e6 {[%clk 0:02:19.1]} 3. e4 {[%clk 0:02:24.1]} 3... h6 {[%clk 0:02:15]} 4.
Bxf6 {[%clk 0:02:24.1]} 4... Qxf6 {[%clk 0:02:15.9]} 5. c3 {[%clk 0:02:24.9]}
5... d6 {[%clk 0:02:14.9]} 6. Bc4 {[%clk 0:02:24]} 6... g6 {[%clk 0:02:12.9]} 7.
Ne2 {[%clk 0:02:22.7]} 7... Bg7 {[%clk 0:02:13.4]} 8. O-O {[%clk 0:02:22.7]}
8... O-O {[%clk 0:02:10.4]} 9. f4 {[%clk 0:02:22.2]} 9... Qe7 {[%clk 0:02:08.2]}
10. e5 {[%clk 0:02:18.8]} 10... c5 {[%clk 0:02:07.2]} 11. Nd2 {[%clk 0:02:13]}
11... Rd8 {[%clk 0:01:50.2]} 12. Qe1 {[%clk 0:01:43.5]} 12... cxd4 {[%clk
0:01:46]} 13. cxd4 {[%clk 0:01:44.4]} 13... Nc6 {[%clk 0:01:40.6]} 14. Kh1
{[%clk 0:01:30.5]} 14... dxe5 {[%clk 0:01:36]} 15. dxe5 {[%clk 0:01:31.4]} 15...
Qb4 {[%clk 0:01:35.1]} 16. Rd1 {[%clk 0:01:02.3]} 16... Rxd2 {[%clk 0:01:25.1]}
17. Rxd2 {[%clk 0:00:57.6]} 17... Qxc4 {[%clk 0:01:25.5]} 18. Qh4 {[%clk
0:00:57.8]} 18... b6 {[%clk 0:01:02.7]} 19. Rc1 {[%clk 0:00:48]} 19... Qb5
{[%clk 0:01:02.8]} 20. Nc3 {[%clk 0:00:28.9]} 20... Qb4 {[%clk 0:00:50.2]} 21.
Rcd1 {[%clk 0:00:21.8]} 21... Nxe5 {[%clk 0:00:19.7]} 22. Qd8+ {[%clk
0:00:13.5]} 22... Kh7 {[%clk 0:00:20.2]} 23. fxe5 {[%clk 0:00:10.7]} 23... Bb7
{[%clk 0:00:20.6]} 24. Qd6 {[%clk 0:00:10.1]} 24... Qg4 {[%clk 0:00:18.9]} 25.
Qd4 {[%clk 0:00:07.5]} 25... Qg5 {[%clk 0:00:16.7]} 26. Qf2 {[%clk 0:00:05.3]}
26... Rf8 {[%clk 0:00:13.4]} 27. Rd7 {[%clk 0:00:05.1]} 27... Bc6 {[%clk
0:00:10.5]} 28. Rc7 {[%clk 0:00:04.9]} 28... Ba8 {[%clk 0:00:09.3]} 29. Rdd7
{[%clk 0:00:04.6]} 29... Qc1+ {[%clk 0:00:08.3]} 30. Nd1 {[%clk 0:00:04.8]}
30... Bd5 {[%clk 0:00:07]} 31. Rxc1 {[%clk 0:00:04.3]} 1-0

[Event "*** Titled Tuesday Blitz"]
[Site "Chess.com"]
[Date "2020.05.19"]
[Round "10"]
[White "LiverpooL174"]
[Black "chessdjw"]
[Result "1-0"]
[WhiteElo "2571"]
[BlackElo "2709"]
[TimeControl "180+1"]
[EndTime "13:56:47 PDT"]
[Termination "LiverpooL174 won on time"]

1. Nf3 {[%clk 0:03:00.9]} 1... c5 {[%clk 0:02:59.6]} 2. b3 {[%clk 0:03:01]} 2...
d6 {[%clk 0:02:58.4]} 3. Bb2 {[%clk 0:03:01.9]} 3... e5 {[%clk 0:02:58.3]} 4. e3
{[%clk 0:03:02]} 4... Nc6 {[%clk 0:02:56.9]} 5. d4 {[%clk 0:03:01.5]} 5... e4
{[%clk 0:02:47.6]} 6. d5 {[%clk 0:02:58.5]} 6... Nce7 {[%clk 0:02:30.7]} 7. Ng5
{[%clk 0:02:55.7]} 7... Bf5 {[%clk 0:02:07.5]} 8. Bb5+ {[%clk 0:02:52.9]} 8...
Bd7 {[%clk 0:02:06.5]} 9. Bxd7+ {[%clk 0:02:53.8]} 9... Qxd7 {[%clk 0:02:06.4]}
10. Nxe4 {[%clk 0:02:54.5]} 10... O-O-O {[%clk 0:02:04.1]} 11. c4 {[%clk
0:02:55.1]} 11... h5 {[%clk 0:01:56]} 12. b4 {[%clk 0:02:54.5]} 12... cxb4
{[%clk 0:01:53.7]} 13. O-O {[%clk 0:02:53.5]} 13... Rh6 {[%clk 0:01:34.9]} 14.
a3 {[%clk 0:02:53.5]} 14... b3 {[%clk 0:01:32.3]} 15. Qxb3 {[%clk 0:02:49.7]}
15... Rg6 {[%clk 0:01:32.5]} 16. c5 {[%clk 0:02:41.4]} 16... Qg4 {[%clk
0:01:26.3]} 17. Ng3 {[%clk 0:02:41.5]} 17... h4 {[%clk 0:01:26.1]} 18. h3 {[%clk
0:02:41.4]} 18... Qg5 {[%clk 0:01:19.8]} 19. c6 {[%clk 0:02:39.1]} 19... bxc6
{[%clk 0:01:07.2]} 20. dxc6 {[%clk 0:02:40]} 20... Nxc6 {[%clk 0:01:07.1]} 21.
Nc3 {[%clk 0:02:27.5]} 21... hxg3 {[%clk 0:01:04.1]} 22. f4 {[%clk 0:02:24.6]}
22... Qa5 {[%clk 0:00:45.4]} 23. Rac1 {[%clk 0:02:25.2]} 23... Nge7 {[%clk
0:00:42.6]} 24. Qxf7 {[%clk 0:02:25.3]} 24... Rf6 {[%clk 0:00:34.2]} 25. Qb3
{[%clk 0:02:23.8]} 25... Rf5 {[%clk 0:00:33.3]} 26. e4 {[%clk 0:02:20.9]} 26...
Rc5 {[%clk 0:00:32.4]} 27. Na4 {[%clk 0:02:18.3]} 27... Rb5 {[%clk 0:00:27.1]}
28. Qc2 {[%clk 0:02:11.6]} 28... Kb8 {[%clk 0:00:25.2]} 29. Bc3 {[%clk
0:02:11.8]} 29... Qa6 {[%clk 0:00:20.5]} 30. Rb1 {[%clk 0:02:08.1]} 30... Ka8
{[%clk 0:00:18.6]} 31. Rxb5 {[%clk 0:02:03.8]} 31... Qxb5 {[%clk 0:00:19.5]} 32.
Rb1 {[%clk 0:02:01.9]} 32... Qc4 {[%clk 0:00:19.7]} 33. Nb2 {[%clk 0:02:00.4]}
33... Qc5+ {[%clk 0:00:18.7]} 34. Kh1 {[%clk 0:02:01.1]} 34... Nd4 {[%clk
0:00:16.6]} 35. Qd3 {[%clk 0:01:59.9]} 35... Ne2 {[%clk 0:00:13.6]} 36. Na4
{[%clk 0:01:58.6]} 36... Qf2 {[%clk 0:00:11.4]} 37. Nb6+ {[%clk 0:01:48.5]}
37... axb6 {[%clk 0:00:08.9]} 38. Qa6+ {[%clk 0:01:48.3]} 38... Kb8 {[%clk
0:00:09.1]} 39. Rxb6+ {[%clk 0:01:49.2]} 39... Qxb6 {[%clk 0:00:08.6]} 40. Qxb6+
{[%clk 0:01:50.1]} 40... Kc8 {[%clk 0:00:09.2]} 41. Qa6+ {[%clk 0:01:44.1]}
41... Kd7 {[%clk 0:00:09.4]} 42. Qxe2 {[%clk 0:01:45]} 42... Rc8 {[%clk
0:00:10]} 43. Qg4+ {[%clk 0:01:42.6]} 43... Ke8 {[%clk 0:00:08.4]} 44. Qxg3
{[%clk 0:01:43.3]} 44... Rc4 {[%clk 0:00:08.3]} 45. Bxg7 {[%clk 0:01:40.9]}
45... Rxe4 {[%clk 0:00:06.6]} 46. Bxf8 {[%clk 0:01:41.1]} 46... Kxf8 {[%clk
0:00:04.6]} 47. Qg5 {[%clk 0:01:40.9]} 47... d5 {[%clk 0:00:04.9]} 48. f5 {[%clk
0:01:38.4]} 48... Kf7 {[%clk 0:00:04.1]} 49. g4 {[%clk 0:01:34.8]} 49... d4
{[%clk 0:00:02.8]} 50. Qd2 {[%clk 0:01:34.7]} 50... Nd5 {[%clk 0:00:01.8]} 51.
Qa2 {[%clk 0:01:27.8]} 51... Re5 {[%clk 0:00:01.3]} 52. Qc4 {[%clk 0:01:27.3]}
52... Ke7 {[%clk 0:00:02.2]} 53. Qxd4 {[%clk 0:01:27]} 53... Re1+ {[%clk
0:00:02.9]} 54. Kh2 {[%clk 0:01:24]} 54... Ne3 {[%clk 0:00:03.2]} 55. Qc5+
{[%clk 0:01:19.3]} 55... Kf7 {[%clk 0:00:03.2]} 56. Qc7+ {[%clk 0:01:17.4]}
56... Kg8 {[%clk 0:00:02.7]} 57. Qd8+ {[%clk 0:01:17.3]} 57... Kh7 {[%clk
0:00:02.3]} 58. Qh4+ {[%clk 0:01:17.5]} 58... Kg8 {[%clk 0:00:01.9]} 59. Qxe1
{[%clk 0:01:18.4]} 1-0

[Event "*** Titled Tuesday Blitz"]
[Site "Chess.com"]
[Date "2020.05.19"]
[Round "10"]
[White "IwkooO"]
[Black "WhiteCapital80"]
[Result "0-1"]
[WhiteElo "2541"]
[BlackElo "2455"]
[TimeControl "180+1"]
[EndTime "13:56:48 PDT"]
[Termination "WhiteCapital80 won by resignation"]

1. e4 {[%clk 0:03:00.9]} 1... e6 {[%clk 0:03:00.4]} 2. d4 {[%clk 0:03:00.4]}
2... d5 {[%clk 0:03:00.7]} 3. Nd2 {[%clk 0:03:01.3]} 3... Nf6 {[%clk 0:03:00.6]}
4. e5 {[%clk 0:03:01.6]} 4... Nfd7 {[%clk 0:03:00.9]} 5. Bd3 {[%clk 0:03:02.2]}
5... c5 {[%clk 0:03:01.1]} 6. c3 {[%clk 0:03:03.1]} 6... Nc6 {[%clk 0:03:01.6]}
7. Ne2 {[%clk 0:03:03.4]} 7... f6 {[%clk 0:03:02.2]} 8. exf6 {[%clk 0:03:03.1]}
8... Nxf6 {[%clk 0:03:02.4]} 9. O-O {[%clk 0:03:02.8]} 9... Bd6 {[%clk
0:03:02.5]} 10. Nf3 {[%clk 0:03:03.2]} 10... Qc7 {[%clk 0:03:02.5]} 11. Bg5
{[%clk 0:03:02.9]} 11... O-O {[%clk 0:03:02.5]} 12. Bh4 {[%clk 0:03:00.1]} 12...
e5 {[%clk 0:03:02.5]} 13. dxe5 {[%clk 0:02:53.4]} 13... Nxe5 {[%clk 0:03:02.7]}
14. Nxe5 {[%clk 0:02:51.3]} 14... Bxe5 {[%clk 0:03:03]} 15. Bg3 {[%clk
0:02:50.5]} 15... Bg4 {[%clk 0:03:02.5]} 16. Qc2 {[%clk 0:02:49.1]} 16... Rae8
{[%clk 0:02:48.1]} 17. Rae1 {[%clk 0:02:42.5]} 17... c4 {[%clk 0:02:22.3]} 18.
Bf5 {[%clk 0:02:41.9]} 18... Bxf5 {[%clk 0:02:21.8]} 19. Qxf5 {[%clk 0:02:42.8]}
19... Ne4 {[%clk 0:02:21.6]} 20. Qh5 {[%clk 0:01:28.1]} 20... g6 {[%clk
0:01:58.3]} 21. Qh6 {[%clk 0:01:16.5]} 21... Nxg3 {[%clk 0:01:53.2]} 22. hxg3
{[%clk 0:01:02.4]} 22... Qc5 {[%clk 0:01:51.5]} 23. Qd2 {[%clk 0:01:01.1]} 23...
Rd8 {[%clk 0:01:29.3]} 24. Rd1 {[%clk 0:00:59.6]} 24... Kg7 {[%clk 0:01:19]} 25.
Nd4 {[%clk 0:00:59.6]} 25... Rfe8 {[%clk 0:01:17.2]} 26. Qg5 {[%clk 0:00:43.6]}
26... Bf6 {[%clk 0:01:11.5]} 27. Qg4 {[%clk 0:00:40.7]} 27... Qb6 {[%clk
0:01:03.2]} 28. Rd2 {[%clk 0:00:31.9]} 28... Re4 {[%clk 0:01:00.6]} 29. Qd1
{[%clk 0:00:17.2]} 29... Bxd4 {[%clk 0:00:59.9]} 30. Rxd4 {[%clk 0:00:17.2]}
30... Rxd4 {[%clk 0:00:57.8]} 31. cxd4 {[%clk 0:00:12.8]} 31... Qxb2 {[%clk
0:00:54.1]} 32. Qa4 {[%clk 0:00:13.1]} 32... Qxd4 {[%clk 0:00:52.3]} 33. Rd1
{[%clk 0:00:13.2]} 33... Qc5 {[%clk 0:00:47.5]} 34. Qc2 {[%clk 0:00:10.7]} 34...
d4 {[%clk 0:00:46.7]} 35. Qe2 {[%clk 0:00:11]} 35... d3 {[%clk 0:00:43.3]} 36.
Qe4 {[%clk 0:00:10.3]} 36... d2 {[%clk 0:00:34.6]} 37. Qxb7+ {[%clk 0:00:07.1]}
37... Kh8 {[%clk 0:00:31.8]} 38. Qe4 {[%clk 0:00:01.8]} 38... Qd4 {[%clk
0:00:31.3]} 39. Qh4 {[%clk 0:00:02.7]} 0-1

[Event "*** Titled Tuesday Blitz"]
[Site "Chess.com"]
[Date "2020.05.19"]
[Round "10"]
[White "WPWPWP-2015"]
[Black "Last7Samurai"]
[Result "1-0"]
[WhiteElo "2437"]
[BlackElo "2770"]
[TimeControl "180+1"]
[EndTime "13:56:52 PDT"]
[Termination "WPWPWP-2015 won by resignation"]

1. e4 {[%clk 0:02:57.2]} 1... b6 {[%clk 0:02:54.5]} 2. d4 {[%clk 0:02:55.9]}
2... Bb7 {[%clk 0:02:54.3]} 3. Nc3 {[%clk 0:02:56.8]} 3... g6 {[%clk 0:02:54.1]}
4. Nf3 {[%clk 0:02:56]} 4... Bg7 {[%clk 0:02:54.1]} 5. h4 {[%clk 0:02:54.6]}
5... h6 {[%clk 0:02:54.2]} 6. h5 {[%clk 0:02:52.6]} 6... g5 {[%clk 0:02:54.5]}
7. Be3 {[%clk 0:02:52.2]} 7... e6 {[%clk 0:02:53.7]} 8. Qd2 {[%clk 0:02:48.6]}
8... d6 {[%clk 0:02:53.7]} 9. O-O-O {[%clk 0:02:47.9]} 9... Nd7 {[%clk 0:02:53]}
10. Bd3 {[%clk 0:02:43.3]} 10... a6 {[%clk 0:02:51.9]} 11. Kb1 {[%clk
0:02:42.6]} 11... b5 {[%clk 0:02:51.5]} 12. Ne2 {[%clk 0:02:42.1]} 12... Ne7
{[%clk 0:02:49.5]} 13. Nh2 {[%clk 0:02:39.3]} 13... c5 {[%clk 0:02:45.6]} 14. c3
{[%clk 0:02:37.9]} 14... c4 {[%clk 0:02:41]} 15. Bc2 {[%clk 0:02:37.6]} 15... d5
{[%clk 0:02:33]} 16. f4 {[%clk 0:02:26.4]} 16... dxe4 {[%clk 0:02:23.3]} 17.
fxg5 {[%clk 0:02:24.1]} 17... Nf5 {[%clk 0:01:53.7]} 18. g6 {[%clk 0:02:09.8]}
18... fxg6 {[%clk 0:01:39.5]} 19. Nf4 {[%clk 0:01:59]} 19... Qb6 {[%clk
0:01:18.3]} 20. Nxg6 {[%clk 0:01:50]} 20... Rg8 {[%clk 0:01:09.5]} 21. Rhe1
{[%clk 0:01:37.9]} 21... O-O-O {[%clk 0:01:06]} 22. Bf4 {[%clk 0:01:35]} 22...
e5 {[%clk 0:01:00]} 23. g4 {[%clk 0:01:12.7]} 23... exf4 {[%clk 0:00:51.8]} 24.
gxf5 {[%clk 0:01:12.2]} 24... e3 {[%clk 0:00:47.2]} 25. Qe2 {[%clk 0:01:09.9]}
25... Kb8 {[%clk 0:00:27.9]} 26. Nxf4 {[%clk 0:00:59.7]} 26... b4 {[%clk
0:00:27.7]} 27. Qxc4 {[%clk 0:00:52.1]} 27... bxc3 {[%clk 0:00:25.3]} 28. Qxc3
{[%clk 0:00:52]} 28... Rc8 {[%clk 0:00:24.6]} 29. Qb3 {[%clk 0:00:50.4]} 29...
Qc7 {[%clk 0:00:22]} 30. Be4 {[%clk 0:00:41]} 30... Nb6 {[%clk 0:00:22]} 31.
Bxb7 {[%clk 0:00:30.2]} 31... Qxb7 {[%clk 0:00:22.9]} 32. Rxe3 {[%clk
0:00:25.3]} 32... Ka7 {[%clk 0:00:07.6]} 33. Ne6 {[%clk 0:00:20.6]} 33... Bf6
{[%clk 0:00:05.7]} 34. Nf3 {[%clk 0:00:19.7]} 34... Rg2 {[%clk 0:00:03.6]} 35.
Nc5 {[%clk 0:00:18.5]} 35... Qc7 {[%clk 0:00:03.4]} 36. Qa3 {[%clk 0:00:14.8]}
36... Kb8 {[%clk 0:00:02.1]} 37. Nxa6+ {[%clk 0:00:14]} 1-0

[Event "*** Titled Tuesday Blitz"]
[Site "Chess.com"]
[Date "2020.05.19"]
[Round "10"]
[White "BocharovD"]
[Black "gilbert_gm"]
[Result "1/2-1/2"]
[WhiteElo "2835"]
[BlackElo "2619"]
[TimeControl "180+1"]
[EndTime "13:56:53 PDT"]
[Termination "Game drawn by agreement"]

1. d4 {[%clk 0:03:00.9]} 1... Nf6 {[%clk 0:02:56.6]} 2. c3 {[%clk 0:03:01]} 2...
d5 {[%clk 0:02:56.2]} 3. Bf4 {[%clk 0:02:59.5]} 3... c6 {[%clk 0:02:56.1]} 4. e3
{[%clk 0:02:56.3]} 4... Bg4 {[%clk 0:02:54.6]} 5. Qb3 {[%clk 0:02:52.4]} 5...
Qb6 {[%clk 0:02:54]} 6. Nd2 {[%clk 0:02:52.2]} 6... Nbd7 {[%clk 0:02:53.4]} 7.
Ngf3 {[%clk 0:02:52.2]} 7... Bxf3 {[%clk 0:02:50.5]} 8. Nxf3 {[%clk 0:02:51.8]}
8... e6 {[%clk 0:02:51]} 9. h3 {[%clk 0:02:51.4]} 9... Be7 {[%clk 0:02:40.9]}
10. Bd3 {[%clk 0:02:50.9]} 10... O-O {[%clk 0:02:40.6]} 11. O-O {[%clk
0:02:50.5]} 11... c5 {[%clk 0:02:35.2]} 12. Qc2 {[%clk 0:02:41.8]} 12... Rac8
{[%clk 0:02:30.8]} 13. Ne5 {[%clk 0:02:36.9]} 13... Nxe5 {[%clk 0:02:24]} 14.
Bxe5 {[%clk 0:02:19.6]} 14... c4 {[%clk 0:02:24.9]} 15. Be2 {[%clk 0:02:19.5]}
15... Nd7 {[%clk 0:02:12]} 16. Bg3 {[%clk 0:02:17.9]} 16... Bd6 {[%clk
0:02:12.5]} 17. Bxd6 {[%clk 0:02:15.2]} 17... Qxd6 {[%clk 0:02:13.4]} 18. e4
{[%clk 0:02:16.1]} 18... b5 {[%clk 0:02:09.6]} 19. Rae1 {[%clk 0:02:12.2]} 19...
a5 {[%clk 0:02:05.4]} 20. exd5 {[%clk 0:02:09.5]} 20... exd5 {[%clk 0:02:01.8]}
21. Bg4 {[%clk 0:02:09.4]} 21... g6 {[%clk 0:01:55]} 22. Re3 {[%clk 0:01:57]}
22... f5 {[%clk 0:01:50.1]} 23. Bf3 {[%clk 0:01:55.2]} 23... Rce8 {[%clk
0:01:48.1]} 24. Rfe1 {[%clk 0:01:47]} 24... Nf6 {[%clk 0:01:43.6]} 25. Re5
{[%clk 0:01:25.4]} 25... Ne4 {[%clk 0:01:42.1]} 26. Bxe4 {[%clk 0:01:24.7]}
26... fxe4 {[%clk 0:01:43]} 27. Rxe8 {[%clk 0:01:18.2]} 27... Rxe8 {[%clk
0:01:42.8]} 28. Qd2 {[%clk 0:01:18]} 28... Rf8 {[%clk 0:01:32.2]} 29. Re3 {[%clk
0:01:17.9]} 29... Qf4 {[%clk 0:01:30]} 30. Qe2 {[%clk 0:01:17.4]} 30... b4
{[%clk 0:01:28.5]} 31. f3 {[%clk 0:01:02.2]} 31... bxc3 {[%clk 0:01:21.9]} 32.
bxc3 {[%clk 0:00:58.8]} 32... exf3 {[%clk 0:01:22]} 33. Rxf3 {[%clk 0:00:57.7]}
33... Qc1+ {[%clk 0:01:22.1]} 34. Kh2 {[%clk 0:00:57.7]} 34... Rxf3 {[%clk
0:01:16]} 35. Qxf3 {[%clk 0:00:58]} 35... Qg5 {[%clk 0:01:16.9]} 36. a4 {[%clk
0:00:57.1]} 36... h5 {[%clk 0:01:09.2]} 37. Qg3 {[%clk 0:00:52.8]} 37... Qf6
{[%clk 0:01:01.7]} 38. Qb8+ {[%clk 0:00:45.9]} 38... Kh7 {[%clk 0:00:59.8]} 39.
Qb7+ {[%clk 0:00:45.4]} 39... Kh6 {[%clk 0:00:50.3]} 40. Qc7 {[%clk 0:00:44.7]}
40... h4 {[%clk 0:00:46.6]} 41. Kg1 {[%clk 0:00:43]} 41... Qg5 {[%clk
0:00:38.9]} 42. Qxa5 {[%clk 0:00:25.2]} 42... Qc1+ {[%clk 0:00:33.2]} 43. Kf2
{[%clk 0:00:25.1]} 43... Qd2+ {[%clk 0:00:32.2]} 44. Kg1 {[%clk 0:00:25]} 44...
Qe1+ {[%clk 0:00:31.7]} 45. Kh2 {[%clk 0:00:25.3]} 45... Qg3+ {[%clk 0:00:31.6]}
46. Kg1 {[%clk 0:00:25.8]} 46... Qe1+ {[%clk 0:00:31.8]} 47. Kh2 {[%clk
0:00:26.7]} 47... Qg3+ {[%clk 0:00:32]} 48. Kg1 {[%clk 0:00:27]} 1/2-1/2

[Event "*** Titled Tuesday Blitz"]
[Site "Chess.com"]
[Date "2020.05.19"]
[Round "10"]
[White "PavelShkapenko"]
[Black "Pittiplatsh"]
[Result "1/2-1/2"]
[WhiteElo "2659"]
[BlackElo "2558"]
[TimeControl "180+1"]
[EndTime "13:56:53 PDT"]
[Termination "Game drawn by agreement"]

1. e4 {[%clk 0:03:00.9]} 1... c5 {[%clk 0:02:59.8]} 2. c3 {[%clk 0:03:01]} 2...
Nf6 {[%clk 0:02:59.4]} 3. e5 {[%clk 0:03:01.3]} 3... Nd5 {[%clk 0:02:59.8]} 4.
d4 {[%clk 0:03:01.9]} 4... cxd4 {[%clk 0:02:59.7]} 5. cxd4 {[%clk 0:03:02.5]}
5... d6 {[%clk 0:02:59.6]} 6. Nf3 {[%clk 0:03:02.8]} 6... Nc6 {[%clk 0:02:59.9]}
7. Bc4 {[%clk 0:03:02.9]} 7... dxe5 {[%clk 0:03:00]} 8. Nxe5 {[%clk 0:03:01.1]}
8... e6 {[%clk 0:02:56.2]} 9. O-O {[%clk 0:03:00.3]} 9... Be7 {[%clk 0:02:55.5]}
10. Nf3 {[%clk 0:02:57.2]} 10... O-O {[%clk 0:02:55.1]} 11. Nc3 {[%clk
0:02:57.7]} 11... Bf6 {[%clk 0:02:49.1]} 12. Ne4 {[%clk 0:02:50.1]} 12... Be7
{[%clk 0:02:37]} 13. Re1 {[%clk 0:02:41.8]} 13... b6 {[%clk 0:02:36.1]} 14. Nc3
{[%clk 0:02:41.6]} 14... Bb7 {[%clk 0:02:34.1]} 15. Nxd5 {[%clk 0:02:41.4]}
15... exd5 {[%clk 0:02:33.9]} 16. Bb3 {[%clk 0:02:34.3]} 16... Bf6 {[%clk
0:02:33.3]} 17. Bf4 {[%clk 0:02:33.9]} 17... Rc8 {[%clk 0:02:27.3]} 18. Ne5
{[%clk 0:02:27.1]} 18... Na5 {[%clk 0:02:26.5]} 19. Bc2 {[%clk 0:02:25.1]} 19...
Nc4 {[%clk 0:02:26.4]} 20. Rb1 {[%clk 0:02:14]} 20... Nd6 {[%clk 0:02:19.3]} 21.
Qd3 {[%clk 0:02:02.6]} 21... g6 {[%clk 0:02:18.4]} 22. Ba4 {[%clk 0:01:46.5]}
22... Rc7 {[%clk 0:01:41.1]} 23. Bh6 {[%clk 0:01:44.8]} 23... Bg7 {[%clk
0:01:39.7]} 24. Bxg7 {[%clk 0:01:45.2]} 24... Kxg7 {[%clk 0:01:40.6]} 25. Rbc1
{[%clk 0:01:42.6]} 25... Nc4 {[%clk 0:01:33.4]} 26. Rc2 {[%clk 0:00:54.3]} 26...
Qd6 {[%clk 0:01:20.5]} 27. b3 {[%clk 0:00:50.3]} 27... Nxe5 {[%clk 0:01:03.8]}
28. dxe5 {[%clk 0:00:49.6]} 28... Qe7 {[%clk 0:01:03.7]} 29. Rxc7 {[%clk
0:00:46]} 29... Qxc7 {[%clk 0:01:04.6]} 30. Qd4 {[%clk 0:00:45.6]} 30... Kg8
{[%clk 0:01:04.4]} 31. h3 {[%clk 0:00:37.8]} 31... Qc5 {[%clk 0:01:00.7]} 32.
Rd1 {[%clk 0:00:37.8]} 32... Rc8 {[%clk 0:00:55.6]} 33. Bd7 {[%clk 0:00:35.1]}
33... Qxd4 {[%clk 0:00:53.1]} 34. Rxd4 {[%clk 0:00:34.5]} 34... Rc2 {[%clk
0:00:53.5]} 35. e6 {[%clk 0:00:28]} 35... fxe6 {[%clk 0:00:41.4]} 36. Bxe6+
{[%clk 0:00:28.2]} 36... Kg7 {[%clk 0:00:41.3]} 37. a4 {[%clk 0:00:28.1]} 37...
Rc6 {[%clk 0:00:34.1]} 38. Bg4 {[%clk 0:00:22.4]} 38... Rc3 {[%clk 0:00:29.6]}
39. Bf3 {[%clk 0:00:19.4]} 39... Rxb3 {[%clk 0:00:28.7]} 40. Bxd5 {[%clk
0:00:19.5]} 40... Bxd5 {[%clk 0:00:29.2]} 41. Rxd5 {[%clk 0:00:20]} 41... a5
{[%clk 0:00:29.7]} 42. g4 {[%clk 0:00:18.5]} 42... Rb4 {[%clk 0:00:29.6]} 43.
Rd6 {[%clk 0:00:18.2]} 43... Rxa4 {[%clk 0:00:27.6]} 44. Rxb6 {[%clk 0:00:18.2]}
44... Ra3 {[%clk 0:00:27.2]} 45. Kg2 {[%clk 0:00:17.1]} 45... a4 {[%clk
0:00:27]} 46. Ra6 {[%clk 0:00:17.4]} 46... g5 {[%clk 0:00:26.8]} 47. f3 {[%clk
0:00:16.2]} 1/2-1/2